bitfinex/quotes_SOLUSD_20250822
["timestamp","ask_amount","ask_price","bid_price","bid_amount"]
[1755884018597,0.06,197.37,197.3,26.0]
[1755884018920,0.06,197.37,197.31,8.44051833]
[1755884019122,8.50051833,197.37,197.32,8.44051833]
[1755884019420,0.72,197.36,197.32,8.44051833]
[1755884019599,0.06,197.37,197.29,26.0]
[1755884019807,0.06,197.37,197.33,8.44051833]
[1755884020010,0.06,197.37,197.34,8.44051833]
[1755884020219,0.06,197.37,197.36,8.44051833]
[1755884020529,0.06,197.37,197.36,8.72484147]
[1755884020718,0.06,197.37,197.36,0.28432314]
[1755884020896,0.06,197.39,197.36,9.17484147]
[1755884021220,0.06,197.39,197.38,34.72484147]
[1755884021426,0.06,197.39,197.38,48.32043548]
[1755884021728,0.06,197.39,197.38,48.71043548]
[1755884022098,0.01393778,197.39,197.38,48.71043548]
[1755884023730,0.01393778,197.39,197.38,0.28432314]
[1755884023926,0.01393778,197.39,197.38,8.44051833]
[1755884026499,0.01393778,197.39,197.38,8.72484147]
[1755884026731,0.01393778,197.39,197.38,22.71043548]
[1755884027516,0.01393778,197.39,197.38,22.32043548]
[1755884027728,0.01393778,197.39,197.38,9.11484147]
[1755884028033,0.01393778,197.39,197.38,8.72484147]
[1755884028236,0.01393778,197.39,197.38,26.0]
[1755884028438,0.01393778,197.39,197.38,8.44051833]
[1755884029353,0.01393778,197.39,197.38,8.72484147]
[1755884029929,0.01393778,197.39,197.38,22.71043548]
[1755884030132,0.01393778,197.39,197.38,13.87991715]
[1755884030341,0.01393778,197.39,197.38,22.32043548]
[1755884030640,0.01393778,197.39,197.38,48.32043548]
[1755884030997,0.01393778,197.39,197.38,22.32043548]
[1755884032028,0.01393778,197.39,197.38,26.28432314]
[1755884032207,0.01393778,197.39,197.38,34.44051833]
[1755884032409,0.01393778,197.39,197.38,48.42611234]
[1755884032622,0.01393778,197.39,197.38,48.32043548]
[1755884033168,0.01393778,197.39,197.38,34.44051833]
[1755884033472,0.01393778,197.39,197.38,48.32043548]
[1755884033628,0.01393778,197.39,197.38,34.72484147]
[1755884035643,0.01393778,197.39,197.38,34.75484147]
[1755884036341,0.01393778,197.39,197.38,26.31432314]
[1755884036735,0.01393778,197.39,197.38,34.75484147]
[1755884037655,0.01393778,197.39,197.38,34.47051833]
[1755884037856,0.73393778,197.39,197.38,0.03]
[1755884038030,0.73393778,197.39,197.38,8.47051833]
[1755884038638,0.73393778,197.39,197.38,0.03]
[1755884038639,0.01393778,197.39,197.38,0.03]
[1755884038840,0.01393778,197.39,197.38,8.47051833]
[1755884039164,0.01393778,197.39,197.38,22.35043548]
[1755884039575,0.01393778,197.39,197.38,66.71043548]
[1755884039736,0.01393778,197.39,197.38,53.11484147]
[1755884040161,0.01393778,197.39,197.38,34.47051833]
[1755884040337,0.01393778,197.39,197.38,26.03]
[1755884040535,0.01393778,197.39,197.38,34.47051833]
[1755884040750,0.73393778,197.39,197.38,0.03]
[1755884040946,9.17445611,197.39,197.38,0.03]
[1755884041251,9.17445611,197.39,197.34,0.03]
[1755884041252,8.44051833,197.37,197.34,0.03]
[1755884041478,8.44051833,197.35,197.34,0.03]
[1755884041648,0.72,197.38,197.34,0.03]
[1755884041850,0.72,197.35,197.34,0.03]
[1755884042260,0.72,197.35,197.34,26.03]
[1755884042458,0.72,197.35,197.34,0.03]
[1755884043172,9.16051833,197.35,197.34,0.03]
[1755884043377,13.59559401,197.34,197.16,44.3]
[1755884043558,8.44051833,197.28,197.18,4.31671968]
[1755884043766,0.72,197.3,197.25,8.44051833]
[1755884044062,0.72,197.3,197.28,8.44051833]
[1755884044245,0.72,197.3,197.29,8.44051833]
[1755884044451,0.72,197.34,197.29,8.44051833]
[1755884044750,0.72,197.33,197.29,8.44051833]
[1755884044974,0.72,197.32,197.3,8.44051833]
[1755884045273,9.16051833,197.36,197.28,26.0]
[1755884045572,9.16051833,197.35,197.3,8.44051833]
[1755884045773,0.72,197.34,197.31,8.44051833]
[1755884045980,0.72,197.34,197.32,8.44051833]
[1755884046179,0.72,197.34,197.31,8.44051833]
[1755884046353,0.72,197.34,197.32,8.44051833]
[1755884046558,0.72,197.36,197.3,26.0]
[1755884046754,0.73393778,197.39,197.35,8.44051833]
[1755884047059,9.16051833,197.38,197.31,26.0]
[1755884047260,0.72,197.37,197.33,8.44051833]
[1755884047464,0.72,197.36,197.33,8.44051833]
[1755884047659,8.44051833,197.38,197.31,26.0]
[1755884047859,0.01393778,197.39,197.34,8.44051833]
[1755884048069,0.01393778,197.39,197.35,8.44051833]
[1755884048272,0.01393778,197.39,197.32,0.28432314]
[1755884048579,0.72,197.38,197.32,0.28432314]
[1755884049078,0.72,197.38,197.35,8.44051833]
[1755884049288,0.01393778,197.39,197.35,8.44051833]
[1755884049581,0.72,197.37,197.34,8.44051833]
[1755884049784,0.72,197.36,197.31,26.0]
[1755884049994,0.72,197.35,197.34,26.0]
[1755884050171,0.72,197.35,197.31,8.44051833]
[1755884050369,0.72,197.34,197.29,8.44051833]
[1755884050571,9.16051833,197.38,197.32,8.44051833]
[1755884050769,9.16051833,197.38,197.3,0.28432314]
[1755884050958,9.16051833,197.38,197.33,8.44051833]
[1755884051172,0.72,197.37,197.32,8.44051833]
[1755884051484,0.72,197.36,197.33,8.44051833]
[1755884051684,0.73393778,197.39,197.34,8.44051833]
[1755884051988,0.72,197.38,197.34,8.44051833]
[1755884052188,0.72,197.38,197.35,8.44051833]
[1755884052689,0.01393778,197.39,197.36,8.44051833]
[1755884052895,0.01393778,197.39,197.38,8.44051833]
[1755884054685,0.01393778,197.39,197.38,34.44051833]
[1755884055561,0.01393778,197.39,197.37,0.28432314]
[1755884055760,0.01393778,197.39,197.38,8.44051833]
[1755884056099,0.73393778,197.39,197.37,34.44051833]
[1755884056790,0.01393778,197.39,197.38,8.44051833]
[1755884057367,0.01393778,197.39,197.37,8.44051833]
[1755884057779,0.73393778,197.39,197.37,8.44051833]
[1755884057978,0.73393778,197.39,197.38,26.0]
[1755884058186,0.73393778,197.39,197.34,26.03]
[1755884058187,0.72,197.38,197.34,0.03]
[1755884058397,8.44051833,197.37,197.34,0.03]
[1755884058576,8.44051833,197.35,197.34,0.03]
[1755884058963,9.16051833,197.35,197.34,0.03]
[1755884059409,0.72,197.35,197.34,0.03]
[1755884060396,8.44051833,197.37,197.34,0.03]
[1755884060772,0.72,197.37,197.34,0.03]
[1755884061393,0.01393778,197.39,197.35,8.44051833]
[1755884061566,0.73393778,197.39,197.34,26.03]
[1755884061766,0.73393778,197.39,197.35,8.44051833]
[1755884061985,0.01393778,197.39,197.36,8.44051833]
[1755884062182,0.01393778,197.39,197.38,8.44051833]
[1755884062361,0.01393778,197.39,197.37,8.44051833]
[1755884062556,0.72,197.38,197.37,26.0]
[1755884063203,0.01393778,197.39,197.34,0.03]
[1755884063386,0.01393778,197.39,197.37,8.44051833]
[1755884063585,0.73393778,197.39,197.34,0.03]
[1755884063786,0.73393778,197.39,197.38,26.0]
[1755884064098,0.01393778,197.39,197.38,26.0]
[1755884064297,0.01393778,197.39,197.38,8.44051833]
[1755884064799,2.14426278,197.41,197.4,8.44051833]
[1755884065310,2.14426278,197.41,197.39,8.44051833]
[1755884066109,2.14426278,197.41,197.38,34.44051833]
[1755884066322,2.86426278,197.41,197.38,34.44051833]
[1755884066636,0.72,197.4,197.38,8.44051833]
[1755884067102,2.14426278,197.41,197.38,8.44051833]
[1755884067310,0.72,197.4,197.37,8.44051833]
[1755884067804,0.72,197.39,197.38,26.0]
[1755884068301,2.14426278,197.41,197.37,8.44051833]
[1755884068916,2.86426278,197.41,197.37,8.44051833]
[1755884070090,0.72,197.4,197.36,8.44051833]
[1755884070413,2.86426278,197.41,197.36,8.44051833]
[1755884070582,2.86426278,197.41,197.37,8.44051833]
[1755884070998,2.14426278,197.41,197.37,8.44051833]
[1755884071721,2.86426278,197.41,197.37,8.44051833]
[1755884071931,2.14426278,197.41,197.4,8.44051833]
[1755884072412,2.14426278,197.41,197.4,9.20484147]
[1755884072599,2.14426278,197.41,197.4,22.80043548]
[1755884072600,1.66426278,197.41,197.4,22.80043548]
[1755884073505,1.66426278,197.41,197.4,0.28432314]
[1755884073712,1.66426278,197.41,197.4,34.72484147]
[1755884074096,1.66426278,197.41,197.4,48.32043548]
[1755884074519,0.06,197.43,197.41,13.87991715]
[1755884074693,0.06,197.43,197.42,22.32043548]
[1755884075213,0.01443295,197.43,197.42,22.32043548]
[1755884075627,0.01443295,197.43,197.42,8.72484147]
[1755884077809,0.01443295,197.43,197.42,22.32043548]
[1755884078116,0.01443295,197.43,197.42,27.30210217]
[1755884078907,0.01443295,197.43,197.42,18.86158384]
[1755884079108,0.01443295,197.43,197.42,27.30210217]
[1755884080423,0.06,197.45,197.44,29.04991715]
[1755884080628,0.7,197.56,197.48,39.59559401]
[1755884080813,0.2,197.57,197.55,34.44051833]
[1755884081208,0.7,197.56,197.55,26.0]
[1755884082426,9.14051833,197.56,197.55,26.0]
[1755884082935,0.7,197.56,197.55,26.0]
[1755884083135,9.14051833,197.56,197.55,26.0]
[1755884083798,9.14051833,197.56,197.46,0.14216157]
[1755884084004,8.44051833,197.54,197.52,26.0]
[1755884084197,9.14051833,197.53,197.52,26.0]
[1755884084398,9.14051833,197.53,197.5,26.0]
[1755884084619,0.2,197.57,197.5,26.0]
[1755884084620,9.14051833,197.52,197.5,26.0]
[1755884084827,0.7,197.51,197.5,26.0]
[1755884085127,9.14051833,197.54,197.46,4.10781819]
[1755884085427,8.44051833,197.5,197.45,8.44051833]
[1755884085721,9.14051833,197.49,197.44,52.46051833]
[1755884085927,0.7,197.48,197.45,8.44051833]
[1755884086124,9.14051833,197.51,197.48,26.0]
[1755884086309,0.7,197.5,197.48,26.0]
[1755884086507,8.44051833,197.52,197.49,26.0]
[1755884086706,0.7,197.51,197.49,26.0]
[1755884087620,9.14051833,197.51,197.49,26.0]
[1755884088221,9.14051833,197.51,197.44,48.22826407]
[1755884088222,0.7,197.56,197.53,26.0]
[1755884088526,0.7,197.55,197.53,26.0]
[1755884088827,0.7,197.54,197.53,26.0]
[1755884089629,0.2,197.57,197.53,26.0]
[1755884089630,8.44051833,197.55,197.53,26.0]
[1755884089828,0.2,197.57,197.53,8.44051833]
[1755884090012,0.7,197.56,197.52,26.0]
[1755884090205,0.7,197.55,197.54,26.0]
[1755884090426,9.14051833,197.55,197.54,26.0]
[1755884090929,9.14051833,197.55,197.48,8.44051833]
[1755884091112,9.14051833,197.55,197.45,0.28432314]
[1755884091113,0.7,197.54,197.51,26.0]
[1755884091312,8.44051833,197.52,197.51,26.0]
[1755884091627,8.44051833,197.53,197.5,26.0]
[1755884091812,0.7,197.52,197.5,26.0]
[1755884092015,0.7,197.56,197.51,26.0]
[1755884092220,8.44051833,197.54,197.51,26.0]
[1755884092414,8.44051833,197.52,197.51,26.0]
[1755884092625,9.14051833,197.52,197.51,26.0]
[1755884093030,9.14051833,197.52,197.5,26.0]
[1755884093330,9.14051833,197.51,197.5,26.0]
[1755884094037,0.7,197.51,197.5,26.0]
[1755884094233,0.7,197.54,197.5,26.0]
[1755884094532,0.7,197.53,197.5,26.0]
[1755884094829,0.7,197.52,197.5,26.0]
[1755884095035,8.44051833,197.52,197.51,26.0]
[1755884095334,8.44051833,197.56,197.51,34.44051833]
[1755884095533,0.2,197.57,197.53,8.44051833]
[1755884096033,0.9,197.57,197.52,26.0]
[1755884096220,0.9,197.57,197.53,8.44051833]
[1755884096412,0.2,197.57,197.53,8.44051833]
[1755884096618,0.2,197.57,197.55,8.44051833]
[1755884097228,0.2,197.57,197.56,26.0]
[1755884097432,0.9,197.57,197.56,26.0]
[1755884098119,0.2,197.57,197.56,26.0]
[1755884098317,0.9,197.57,197.56,26.0]
[1755884098514,9.34051833,197.57,197.51,26.0]
[1755884098744,8.44051833,197.53,197.48,8.44051833]
[1755884098920,0.7,197.52,197.51,26.0]
[1755884099543,0.7,197.55,197.52,26.0]
[1755884099925,0.7,197.54,197.52,26.0]
[1755884100123,0.2,197.57,197.48,26.0]
[1755884100327,0.7,197.53,197.48,34.44051833]
[1755884100636,0.7,197.52,197.48,26.0]
[1755884100821,0.7,197.52,197.48,8.44051833]
[1755884101141,0.2,197.57,197.48,8.44051833]
[1755884101337,0.7,197.56,197.48,8.44051833]
[1755884102424,0.2,197.57,197.53,8.44051833]
[1755884102628,0.2,197.57,197.54,8.44051833]
[1755884102942,0.2,197.57,197.56,8.44051833]
[1755884103316,0.2,197.57,197.54,26.0]
[1755884103545,0.2,197.57,197.56,8.44051833]
[1755884103926,0.2,197.57,197.54,8.44051833]
[1755884104455,0.2,197.57,197.56,34.44051833]
[1755884104942,0.2,197.57,197.56,26.0]
[1755884105258,0.2,197.57,197.56,8.72484147]
[1755884106056,0.2,197.59,197.57,13.87991715]
[1755884106219,0.2,197.59,197.58,66.74655958]
[1755884106422,0.06,197.61,197.6,39.59559401]
[1755884106622,0.06,197.61,197.6,57.26702668]
[1755884106824,0.06,197.61,197.6,34.72484147]
[1755884107823,0.06,197.61,197.6,26.28432314]
[1755884108018,0.06,197.61,197.6,34.72484147]
[1755884108650,0.06,197.61,197.6,36.75051747]
[1755884109059,0.78,197.61,197.51,13.59559401]
[1755884109348,0.78,197.61,197.57,8.44051833]
[1755884109740,0.06,197.61,197.6,34.44051833]
[1755884110043,0.06,197.61,197.6,34.72484147]
[1755884110243,0.06,197.61,197.6,26.28432314]
[1755884110433,0.06,197.61,197.6,34.72484147]
[1755884112333,0.06,197.61,197.6,56.76095381]
[1755884115446,0.06,197.67,197.66,0.28432314]
[1755884115651,0.06,197.67,197.66,66.68635473]
[1755884116160,0.01402088,197.67,197.66,58.2458364]
[1755884116364,0.01402088,197.67,197.66,66.68635473]
[1755884117764,0.01402088,197.67,197.66,58.2458364]
[1755884118272,0.01402088,197.67,197.66,22.82635473]
[1755884118447,0.01402088,197.67,197.66,66.68635473]
[1755884118641,0.06,197.69,197.68,26.0]
[1755884118962,0.06,197.69,197.68,22.82630354]
[1755884119340,0.06,197.69,197.68,24.85054454]
[1755884120575,0.06,197.69,197.68,15.76199658]
[1755884120747,0.06,197.69,197.68,54.30475933]
[1755884120947,0.06,197.69,197.68,52.28051833]
[1755884121144,0.78,197.69,197.68,43.84]
[1755884121347,0.78,197.69,197.67,2.024855]
[1755884121561,0.72,197.68,197.66,52.26051833]
[1755884121770,0.72,197.68,197.66,43.82]
[1755884122075,0.06,197.69,197.66,43.82]
[1755884122281,0.06,197.69,197.68,8.44051833]
[1755884122446,0.06,197.69,197.68,22.17827391]
[1755884122644,0.06,197.71,197.7,39.59559401]
[1755884122864,0.06,197.75,197.74,39.87991715]
[1755884123171,0.06,197.75,197.74,84.20563172]
[1755884123356,0.06,197.75,197.74,82.7042701]
[1755884123664,0.78,197.75,197.74,82.7042701]
[1755884124056,0.06,197.75,197.74,82.7042701]
[1755884124455,0.06,197.75,197.74,92.86737712]
[1755884124773,0.06,197.75,197.74,101.30789545]
[1755884124973,0.06,197.75,197.74,101.81361002]
[1755884125545,0.06,197.75,197.74,103.83744102]
[1755884126447,0.06,197.75,197.74,37.47561411]
[1755884126658,0.06,197.75,197.74,101.50928688]
[1755884126863,0.06,197.75,197.74,103.81754302]
[1755884127060,0.06,197.75,197.74,94.87131012]
[1755884127369,0.06,197.75,197.74,103.31182845]
[1755884127555,0.06,197.75,197.74,89.71623444]
[1755884127882,0.06,197.75,197.7,13.59559401]
[1755884127883,0.78,197.75,197.73,4.13345645]
[1755884128048,0.06,197.75,197.73,43.78]
[1755884128253,0.06,197.75,197.74,8.5826799]
[1755884128448,0.06,197.75,197.74,0.14216157]
[1755884128650,0.06,197.75,197.74,22.32043548]
[1755884128951,0.06,197.75,197.74,8.72484147]
[1755884129160,0.06,197.75,197.74,0.28432314]
[1755884129362,0.06,197.75,197.74,8.72484147]
[1755884130080,0.78,197.75,197.74,52.22051833]
[1755884130285,0.78,197.75,197.74,43.78]
[1755884130644,0.78,197.75,197.74,26.0]
[1755884130851,9.22051833,197.75,197.69,12.50169122]
[1755884131174,8.44051833,197.73,197.7,43.78]
[1755884131477,0.72,197.72,197.7,43.78]
[1755884131658,0.72,197.71,197.7,43.78]
[1755884131857,8.44051833,197.74,197.7,43.78]
[1755884132078,0.72,197.71,197.7,43.78]
[1755884132978,0.72,197.71,197.69,4.16627984]
[1755884133175,8.44051833,197.73,197.71,26.0]
[1755884133778,0.06,197.75,197.74,26.0]
[1755884134075,0.06,197.75,197.74,34.72484147]
[1755884135080,0.06,197.75,197.74,78.48484147]
[1755884135289,0.06,197.75,197.74,70.04432314]
[1755884135459,0.06,197.75,197.74,78.48484147]
[1755884135652,0.06,197.75,197.74,92.08043548]
[1755884136577,0.06,197.75,197.74,48.32043548]
[1755884136758,0.06,197.75,197.74,34.72484147]
[1755884136959,0.78,197.75,197.74,52.46484147]
[1755884137451,0.78,197.75,197.74,43.74]
[1755884139563,9.22051833,197.75,197.73,26.0]
[1755884139768,0.72,197.74,197.72,43.74]
[1755884139980,8.44051833,197.74,197.72,69.74]
[1755884140283,0.72,197.73,197.72,69.74]
[1755884140483,0.72,197.73,197.72,26.0]
[1755884142586,0.06,197.75,197.74,26.0]
[1755884143377,0.78,197.75,197.74,26.0]
[1755884144294,9.22051833,197.75,197.74,26.0]
[1755884144586,0.78,197.75,197.73,26.0]
[1755884144788,9.16051833,197.74,197.73,26.0]
[1755884145162,0.72,197.74,197.73,26.0]
[1755884146080,0.06,197.75,197.73,43.7]
[1755884146261,0.06,197.75,197.74,0.28432314]
[1755884146692,0.06,197.75,197.74,8.72484147]
[1755884147363,0.06,197.75,197.74,22.98043548]
[1755884147706,0.01467726,197.75,197.74,22.98043548]
[1755884148961,0.06,197.77,197.76,0.28432314]
[1755884149200,0.06,197.77,197.76,70.16172108]
[1755884149697,0.78,197.77,197.7,0.66]
[1755884149872,0.78,197.77,197.72,34.44051833]
[1755884150064,0.78,197.77,197.73,0.14216157]
[1755884150265,9.16051833,197.76,197.74,26.0]
[1755884150493,9.16051833,197.75,197.72,43.68]
[1755884150665,8.44051833,197.75,197.72,43.68]
[1755884150869,9.16051833,197.74,197.69,17.55712609]
[1755884151066,0.72,197.74,197.7,8.44051833]
[1755884151262,0.06,197.77,197.72,34.44051833]
[1755884151473,0.06,197.77,197.76,26.0]
[1755884152090,9.22051833,197.77,197.73,26.0]
[1755884152287,0.06,197.77,197.75,26.0]
[1755884152501,9.16051833,197.76,197.75,26.0]
[1755884152670,0.06,197.77,197.75,34.44051833]
[1755884152865,0.06,197.77,197.76,26.0]
[1755884153064,0.06,197.77,197.76,78.38484147]
[1755884153572,0.78,197.77,197.76,69.66]
[1755884153762,0.78,197.77,197.74,69.66]
[1755884155090,0.06,197.77,197.74,69.66]
[1755884155272,8.44051833,197.75,197.73,0.03]
[1755884155469,9.16051833,197.74,197.73,0.03]
[1755884155670,0.72,197.74,197.73,0.03]
[1755884155903,8.44051833,197.74,197.73,0.03]
[1755884156077,0.72,197.74,197.73,0.03]
[1755884156278,8.44051833,197.75,197.73,0.03]
[1755884156896,9.16051833,197.75,197.73,0.03]
[1755884157094,8.44051833,197.75,197.73,0.03]
[1755884157302,8.44051833,197.76,197.74,26.0]
[1755884157485,8.50051833,197.77,197.74,26.0]
[1755884157679,9.22051833,197.77,197.74,26.0]
[1755884158081,0.06,197.77,197.74,26.0]
[1755884158290,0.06,197.77,197.75,8.44051833]
[1755884158596,0.06,197.77,197.76,26.0]
[1755884159506,0.01412903,197.77,197.76,34.44051833]
[1755884159880,0.01412903,197.77,197.76,78.08051833]
[1755884160305,0.01412903,197.77,197.76,69.64]
[1755884160599,0.73412903,197.77,197.76,26.0]
[1755884160799,9.17464736,197.77,197.76,26.0]
[1755884161203,0.73412903,197.77,197.75,26.0]
[1755884161378,8.45464736,197.77,197.75,26.0]
[1755884161581,0.01412903,197.77,197.76,26.0]
[1755884162306,0.01412903,197.77,197.74,8.44051833]
[1755884162307,0.01412903,197.77,197.75,52.08051833]
[1755884162604,0.01412903,197.77,197.75,43.64]
[1755884162778,0.01412903,197.77,197.76,8.44051833]
[1755884162977,0.01412903,197.77,197.76,9.38484147]
[1755884163200,0.01412903,197.77,197.76,22.98043548]
[1755884163715,0.01412903,197.77,197.76,0.28432314]
[1755884164082,0.01412903,197.77,197.76,8.72484147]
[1755884166205,0.01412903,197.77,197.76,9.39484147]
[1755884167026,0.01412903,197.77,197.76,23.49609891]
[1755884167190,0.2,197.78,197.77,39.87991715]
[1755884167388,0.2,197.78,197.77,48.99043548]
[1755884167697,0.06,197.79,197.77,92.59043548]
[1755884167902,0.06,197.79,197.78,23.49604777]
[1755884168207,0.06,197.81,197.79,13.87991715]
[1755884168405,0.06,197.81,197.8,52.32484147]
[1755884168605,0.06,197.81,197.8,45.05988431]
[1755884168912,0.06,197.81,197.8,53.50040264]
[1755884169213,0.06,197.81,197.8,67.09599665]
[1755884169597,0.0282825,197.83,197.81,13.87991715]
[1755884169799,0.0282825,197.83,197.82,52.32484147]
[1755884170108,0.0282825,197.83,197.82,52.99484147]
[1755884170512,0.0282825,197.83,197.82,52.32484147]
[1755884170713,0.0282825,197.83,197.82,65.92043548]
[1755884171602,0.0282825,197.83,197.82,66.59043548]
[1755884172917,0.0282825,197.83,197.82,58.14991715]
[1755884173305,0.0282825,197.83,197.82,65.77827391]
[1755884173821,0.0282825,197.83,197.82,22.17827391]
[1755884174120,0.0282825,197.83,197.82,65.88043548]
[1755884174330,0.0282825,197.83,197.82,43.56]
[1755884174543,0.0282825,197.83,197.82,52.00051833]
[1755884175127,0.0282825,197.83,197.82,52.28484147]
[1755884175300,0.0282825,197.83,197.82,52.00051833]
[1755884175600,0.0282825,197.83,197.82,52.1426799]
[1755884176018,0.0282825,197.83,197.82,65.88043548]
[1755884176615,0.0282825,197.83,197.82,67.90365148]
[1755884177063,0.0282825,197.83,197.82,2.30753914]
[1755884177334,0.0282825,197.83,197.82,52.28484147]
[1755884177640,0.7382825,197.83,197.82,43.70216157]
[1755884177816,0.0282825,197.83,197.82,52.1426799]
[1755884178017,0.7382825,197.83,197.82,52.28484147]
[1755884178514,0.7382825,197.83,197.76,0.03]
[1755884178712,0.7382825,197.83,197.77,43.54]
[1755884178950,9.17880083,197.83,197.78,8.72484147]
[1755884179122,8.46880083,197.83,197.82,26.0]
[1755884179322,0.0282825,197.83,197.82,26.0]
[1755884179538,8.46880083,197.83,197.77,8.44051833]
[1755884179727,0.71,197.82,197.78,8.44051833]
[1755884179931,0.0282825,197.83,197.81,26.0]
[1755884180264,8.46880083,197.83,197.81,26.0]
[1755884180541,0.71,197.82,197.81,26.0]
[1755884180738,9.15051833,197.82,197.81,26.0]
[1755884181811,9.15051833,197.82,197.76,0.03]
[1755884182013,0.71,197.81,197.76,8.47051833]
[1755884182230,8.44051833,197.79,197.76,0.03]
[1755884182422,8.44051833,197.77,197.76,0.03]
[1755884182635,0.71,197.77,197.76,26.03]
[1755884183144,0.71,197.81,197.76,78.01051833]
[1755884183360,0.71,197.8,197.79,26.0]
[1755884183762,9.15051833,197.8,197.79,26.0]
[1755884184642,0.71,197.8,197.79,26.0]
[1755884184835,0.71,197.8,197.78,26.0]
[1755884185153,8.44051833,197.81,197.79,26.0]
[1755884185356,8.44051833,197.82,197.79,26.0]
[1755884185552,0.71,197.8,197.78,26.0]
[1755884185750,0.71,197.8,197.79,26.0]
[1755884185958,9.17880083,197.83,197.8,26.0]
[1755884186153,9.17880083,197.83,197.77,8.47051833]
[1755884186154,8.44051833,197.81,197.77,0.03]
[1755884186355,0.71,197.82,197.78,26.0]
[1755884186567,8.44051833,197.79,197.78,26.0]
[1755884187041,9.15051833,197.79,197.78,26.0]
[1755884187564,0.71,197.82,197.77,8.47051833]
[1755884187739,8.44051833,197.82,197.77,8.47051833]
[1755884187939,9.15051833,197.81,197.77,0.03]
[1755884188157,0.71,197.8,197.77,0.03]
[1755884188645,0.0282825,197.83,197.77,8.47051833]
[1755884188843,8.46880083,197.83,197.77,8.47051833]
[1755884189252,8.44051833,197.82,197.77,0.03]
[1755884189455,8.44051833,197.8,197.77,0.03]
[1755884190273,0.71,197.79,197.77,0.03]
[1755884191160,0.7382825,197.83,197.77,0.31432314]
[1755884191362,0.0282825,197.83,197.82,26.0]
[1755884192963,0.0282825,197.83,197.82,34.72484147]
[1755884193474,0.0282825,197.83,197.82,8.72484147]
[1755884194466,0.7382825,197.83,197.79,26.0]
[1755884194667,0.71,197.82,197.79,77.94051833]
[1755884194849,0.7382825,197.83,197.79,69.5]
[1755884195171,0.0282825,197.83,197.79,69.5]
[1755884195353,0.0282825,197.83,197.82,8.44051833]
[1755884195545,0.0282825,197.83,197.79,69.5]
[1755884195744,0.0282825,197.83,197.81,8.44051833]
[1755884196480,0.7282825,197.83,197.79,69.5]
[1755884196651,0.7282825,197.83,197.82,34.44051833]
[1755884196652,0.0282825,197.83,197.82,34.44051833]
[1755884196851,0.0282825,197.83,197.82,26.0]
[1755884197162,0.0282825,197.83,197.82,52.62051833]
[1755884198076,0.0282825,197.83,197.82,51.94051833]
[1755884199183,0.0282825,197.83,197.82,52.90484147]
[1755884199478,0.0282825,197.83,197.82,52.22484147]
[1755884199674,0.0282825,197.83,197.82,43.78432314]
[1755884199881,0.0282825,197.83,197.82,52.22484147]
[1755884200470,0.0282825,197.83,197.82,43.78432314]
[1755884200665,0.0282825,197.83,197.82,52.22484147]
[1755884201180,0.0282825,197.83,197.82,51.94051833]
[1755884201756,0.0282825,197.83,197.82,52.90484147]
[1755884202949,0.0282825,197.83,197.82,52.22484147]
[1755884203154,0.0282825,197.83,197.82,52.90484147]
[1755884203383,0.0282825,197.83,197.82,52.22484147]
[1755884204387,0.00650056,197.83,197.82,52.22484147]
[1755884204697,0.00650056,197.83,197.82,43.78432314]
[1755884204982,0.00650056,197.83,197.82,52.22484147]
[1755884205689,0.00650056,197.83,197.82,43.78432314]
[1755884205892,0.00650056,197.83,197.82,66.50043548]
[1755884206399,0.00650056,197.83,197.82,52.22484147]
[1755884208272,0.00650056,197.83,197.82,31.36867697]
[1755884208501,0.00650056,197.83,197.82,74.82867697]
[1755884208670,0.00650056,197.83,197.82,78.49422728]